bitfinex/quotes_SOLUSD_20250722
["timestamp","ask_amount","ask_price","bid_price","bid_amount"]
[1753159332277,54.36468397,197.99,197.94,0.87]
[1753159332482,16.78468397,198.01,197.95,10.86337181]
[1753159332679,16.78468397,198.01,197.96,0.67]
[1753159332887,6.1855,198.1,197.96,0.67]
[1753159333083,10.86337181,197.97,197.94,0.2]
[1753159333308,27.64805578,197.96,197.94,0.2]
[1753159333501,27.64805578,197.95,197.94,0.2]
[1753159333875,16.78468397,197.95,197.94,0.2]
[1753159334105,27.64805578,197.95,197.94,0.2]
[1753159335082,16.78468397,197.95,197.94,0.2]
[1753159335494,27.64805578,197.95,197.94,0.2]
[1753159335910,10.86337181,197.97,197.94,0.87]
[1753159336113,37.62,198.03,197.95,0.67]
[1753159336289,10.86337181,197.96,197.74,10.863371]
[1753159336487,21.72674362,197.78,197.75,2.63670334]
[1753159336688,26.0,197.73,197.47,5.06406036]
[1753159336926,2.6308399,197.67,197.42,11.76656705]
[1753159337102,26.0,197.51,197.42,15.88359021]
[1753159337299,10.86337181,197.43,197.42,11.76656705]
[1753159337498,21.72674362,197.43,197.42,11.76656705]
[1753159337686,10.86337181,197.35,197.16,0.67]
[1753159337886,26.0,197.35,197.17,5.74176548]
[1753159338097,26.0,197.37,197.18,0.67]
[1753159338295,10.86337181,197.19,197.18,0.67]
[1753159338483,21.79786348,197.44,197.18,0.67]
[1753159338716,10.0,197.49,197.18,0.67]
[1753159338717,26.0,197.37,197.18,0.67]
[1753159339012,26.0,197.37,197.19,5.07125107]
[1753159339223,9.99999999,197.46,197.2,0.67]
[1753159339400,15.82508581,197.35,197.2,10.67]
[1753159339723,26.0,197.44,197.27,15.82508581]
[1753159339884,26.0,197.46,197.28,0.67]
[1753159340282,2.64438479,197.54,197.28,0.67]
[1753159340283,5.06226587,197.54,197.28,0.67]
[1753159340401,26.0,197.51,197.32,26.0]
[1753159340590,5.06226587,197.54,197.34,0.03]
[1753159340794,21.2907482,197.54,197.35,0.67]
[1753159341118,15.82508581,197.45,197.35,0.67]
[1753159341321,5.06237727,197.54,197.35,0.67]
[1753159341489,17.71804194,197.54,197.35,0.67]
[1753159341690,5.06237727,197.54,197.35,0.67]
[1753159342103,40.46,197.55,197.35,5.73702739]
[1753159342359,40.46,197.55,197.36,0.67]
[1753159342621,36.34,197.59,197.41,15.82508581]
[1753159342822,44.90342615,197.61,197.43,15.82508581]
[1753159343004,15.196029,197.63,197.44,31.73477597]
[1753159343331,15.82508581,197.58,197.44,29.09673101]
[1753159343532,42.42,197.66,197.44,29.09673101]
[1753159343533,42.44,197.7,197.52,15.82508581]
[1753159343820,42.44,197.7,197.44,29.09673101]
[1753159343821,0.66,197.68,197.44,29.09673101]
[1753159344046,0.66,197.68,197.45,42.42]
[1753159344264,0.66,197.68,197.54,15.82508581]
[1753159344551,15.82508581,197.66,197.58,15.82508581]
[1753159344753,0.66,197.72,197.6,15.82508581]
[1753159345066,1.5194,197.85,197.6,15.82508581]
[1753159345067,0.66,197.77,197.62,15.82508581]
[1753159345257,15.82508581,197.67,197.59,15.82508581]
[1753159345425,15.82508581,197.78,197.61,0.67]
[1753159345426,0.66,197.74,197.61,0.67]
[1753159345626,15.82508581,197.62,197.52,16.49508581]
[1753159345966,15.82508581,197.55,197.5,0.67]
[1753159346127,15.82508581,197.54,197.5,0.67]
[1753159346333,15.82508581,197.54,197.43,36.4]
[1753159346334,26.66,197.61,197.48,15.82508581]
[1753159346630,26.0,197.63,197.51,15.82508581]
[1753159346954,15.82508581,197.55,197.49,0.67]
[1753159347330,15.82508581,197.56,197.48,15.82508581]
[1753159347649,15.82508581,197.49,197.46,0.67]
[1753159348152,15.82508581,197.47,197.41,0.67]
[1753159348358,16.78468397,197.51,197.41,16.49508581]
[1753159348544,15.82508581,197.47,197.41,0.67]
[1753159349056,15.82508581,197.48,197.41,21.56059174]
[1753159349254,15.82508581,197.46,197.41,0.67]
[1753159349467,16.78468397,197.5,197.41,0.67]
[1753159349468,15.82508581,197.44,197.41,0.67]
[1753159349759,15.82508581,197.42,197.36,0.67]
[1753159350054,15.82508581,197.41,197.36,0.67]
[1753159350227,15.82508581,197.4,197.34,0.03]
[1753159350428,16.78468397,197.44,197.34,0.03]
[1753159350629,15.82508581,197.38,197.34,0.03]
[1753159351065,16.78468397,197.44,197.34,0.7]
[1753159351224,0.66,197.44,197.34,0.03]
[1753159351423,15.82508581,197.37,197.34,0.03]
[1753159351634,15.82508581,197.36,197.3,0.44233122]
[1753159351829,16.78468397,197.41,197.21,31.71848778]
[1753159351830,15.82508581,197.31,197.25,15.82508581]
[1753159352048,15.82508581,197.31,197.24,20.89505133]
[1753159352272,43.44468397,197.38,197.24,5.06996552]
[1753159352472,15.82508581,197.32,197.25,15.82508581]
[1753159352636,15.82508581,197.31,197.24,5.06996552]
[1753159352836,15.82508581,197.28,197.24,5.06996552]
[1753159353153,26.0,197.32,197.13,30.43676761]
[1753159353339,26.0,197.32,197.16,26.0]
[1753159353340,16.78468397,197.31,197.16,26.0]
[1753159353535,15.82508581,197.28,197.16,26.0]
[1753159353749,15.82508581,197.24,197.17,0.67]
[1753159353953,15.82508581,197.23,197.17,0.67]
[1753159354265,16.78468397,197.3,197.17,0.67]
[1753159354631,16.78468397,197.31,197.2,15.82508581]
[1753159354852,16.78468397,197.28,197.17,0.67]
[1753159355053,15.82508581,197.26,197.18,5.07150826]
[1753159355308,0.66,197.3,197.18,5.07150826]
[1753159355451,15.82508581,197.3,197.24,15.82508581]
[1753159355758,16.78468397,197.32,197.22,0.67]
[1753159355967,16.78468397,197.37,197.26,15.82508581]
[1753159356157,0.66,197.42,197.29,15.82508581]
[1753159356336,15.82508581,197.36,197.3,15.82508581]
[1753159356536,15.82508581,197.34,197.27,0.67]
[1753159356740,15.82508581,197.3,197.24,15.82508581]
[1753159357036,16.78468397,197.36,197.26,15.82508581]
[1753159357270,16.78468397,197.36,197.27,5.0691945]
[1753159357461,16.78468397,197.36,197.27,20.89428031]
[1753159357462,15.82508581,197.33,197.27,20.89428031]
[1753159357771,15.82508581,197.32,197.27,5.7391945]
[1753159358272,15.82508581,197.32,197.27,5.0691945]
[1753159358770,15.82508581,197.32,197.28,0.69]
[1753159358938,15.82508581,197.32,197.27,5.0691945]
[1753159359466,16.78468397,197.37,197.27,5.0691945]
[1753159359766,15.82508581,197.31,197.27,5.0691945]
[1753159360178,15.82508581,197.32,197.27,5.7591945]
[1753159360376,15.82508581,197.33,197.27,21.58428031]
[1753159360779,15.82508581,197.3,197.27,5.0691945]
[1753159361082,15.82508581,197.32,197.27,5.0691945]
[1753159361285,11.01779987,197.31,197.25,11.01779987]
[1753159361475,16.78468397,197.35,197.25,11.01779987]
[1753159361677,16.78468397,197.38,197.29,11.01779987]
[1753159361882,16.78468397,197.38,197.28,11.70779987]
[1753159362067,11.01779987,197.34,197.28,11.70779987]
[1753159362563,0.66,197.4,197.28,11.70779987]
[1753159362564,11.01779987,197.36,197.28,0.69]
[1753159362879,16.78468397,197.39,197.31,11.01779987]
[1753159363193,16.78468397,197.42,197.34,11.01779987]
[1753159363489,0.66,197.44,197.36,5.06688285]
[1753159363665,11.01779987,197.4,197.36,5.06688285]
[1753159363863,0.66,197.44,197.36,5.06688285]
[1753159364078,11.01779987,197.4,197.36,5.06688285]
[1753159364287,17.44468397,197.44,197.33,16.08545303]
[1753159364588,11.01779987,197.42,197.36,11.01779987]
[1753159364783,11.01779987,197.44,197.38,11.01779987]
[1753159364987,0.66,197.47,197.38,11.01779987]
[1753159365188,11.01779987,197.54,197.42,11.01779987]
[1753159365189,11.01779987,197.48,197.42,11.01779987]
[1753159365363,0.06,197.44,197.43,11.01779987]
[1753159365686,0.06,197.44,197.39,0.69]
[1753159365687,0.06,197.44,197.42,11.01779987]
[1753159365883,0.06,197.44,197.43,11.01779987]
[1753159366097,0.06,197.44,197.43,11.70779987]
[1753159366270,0.66,197.55,197.44,17.72690437]
[1753159366585,11.01779987,197.54,197.48,11.01779987]
[1753159366780,11.01779987,197.53,197.47,11.01779987]
[1753159367088,11.01779987,197.53,197.45,0.69]
[1753159367392,11.01779987,197.55,197.45,0.69]
[1753159367682,0.1,197.56,197.52,11.01779987]
[1753159367888,0.1,197.56,197.54,11.01779987]
[1753159368265,0.1,197.56,197.54,5.06226587]
[1753159368462,0.1,197.56,197.48,41.9]
[1753159368463,11.01779987,197.55,197.48,41.9]
[1753159368664,0.1,197.56,197.54,11.01779987]
[1753159368865,0.1,197.56,197.55,11.01779987]
[1753159369089,0.1,197.56,197.49,18.41241632]
[1753159369287,0.1,197.56,197.52,11.01779987]
[1753159369488,0.1,197.56,197.51,11.01779987]
[1753159369670,0.66,197.55,197.49,5.06354752]
[1753159369861,11.01779987,197.53,197.49,5.06354752]
[1753159370261,0.1,197.56,197.5,11.01779987]
[1753159370466,0.1,197.56,197.53,11.01779987]
[1753159370668,0.1,197.56,197.54,11.01779987]
[1753159371100,17.46335749,197.6,197.55,11.70779987]
[1753159371267,17.46335749,197.6,197.59,11.01779987]
[1753159371464,17.46335749,197.6,197.59,11.70779987]
[1753159372171,1e-08,197.6,197.59,0.69]
[1753159372379,1e-08,197.6,197.59,16.76878473]
[1753159372997,1e-08,197.6,197.59,11.70779987]
[1753159374189,11.01779987,197.73,197.59,11.70779987]
[1753159374376,11.01779987,197.69,197.63,11.01779987]
[1753159374574,11.01779987,197.7,197.63,11.01779987]
[1753159374879,11.01779987,197.7,197.64,11.01779987]
[1753159375079,11.01779987,197.71,197.64,11.01779987]
[1753159375292,5.0565901,197.77,197.66,11.01779987]
[1753159375485,11.01779987,197.72,197.66,11.01779987]
[1753159375690,16.78468397,197.74,197.67,11.01779987]
[1753159375883,16.78468397,197.74,197.65,11.01779987]
[1753159376088,11.01779987,197.72,197.66,11.01779987]
[1753159376273,11.01779987,197.73,197.68,5.05868069]
[1753159376471,11.01779987,197.74,197.68,5.05868069]
[1753159376690,17.44468397,197.78,197.68,17.70538243]
[1753159376893,11.01779987,197.74,197.68,28.7231823]
[1753159377093,11.01779987,197.75,197.69,11.01779987]
[1753159377289,11.01779987,197.76,197.7,11.01779987]
[1753159377488,11.01779987,197.77,197.71,11.01779987]
[1753159377693,0.66,197.78,197.72,11.01779987]
[1753159377694,11.01779987,197.78,197.72,11.01779987]
[1753159377894,11.73779987,197.82,197.75,11.01779987]
[1753159378092,11.01779987,197.81,197.75,11.01779987]
[1753159378292,0.72,197.82,197.74,11.01779987]
[1753159378487,11.01779987,197.76,197.67,0.69]
[1753159378692,11.01779987,197.76,197.69,11.01779987]
[1753159379002,11.01779987,197.73,197.65,17.70806982]
[1753159379201,17.44468397,197.75,197.66,11.01779987]
[1753159379388,11.01779987,197.74,197.68,11.01779987]
[1753159379585,11.01779987,197.75,197.68,11.01779987]
[1753159379778,11.01779987,197.73,197.67,11.01779987]
[1753159380377,16.78468397,197.74,197.64,6.2207]
[1753159380582,11.01779987,197.66,197.6,17.71227507]
[1753159380780,11.01779987,197.65,197.6,5.06072874]
[1753159380994,16.78468397,197.68,197.6,5.06072874]
[1753159381201,11.01779987,197.67,197.61,11.01779987]
[1753159381377,11.01779987,197.68,197.62,11.01779987]
[1753159381579,11.01779987,197.67,197.6,29.42035047]
[1753159381896,11.01779987,197.64,197.6,5.06072874]
[1753159382092,11.01779987,197.67,197.61,11.70779987]
[1753159382399,11.01779987,197.72,197.66,16.07699242]
[1753159382593,27.80248384,197.72,197.66,5.05919255]
[1753159382781,11.01779987,197.67,197.59,17.71306361]
[1753159382980,11.01779987,197.6,197.57,5.06149719]
[1753159383181,0.66,197.66,197.57,5.06149719]
[1753159383502,11.01779987,197.64,197.58,11.70779987]
[1753159383806,11.01779987,197.67,197.61,11.01779987]
[1753159383996,11.01779987,197.68,197.61,11.01779987]
[1753159384183,11.01779987,197.66,197.6,11.01779987]
[1753159384380,11.01779987,197.66,197.6,5.06072874]
[1753159384680,11.01779987,197.69,197.61,0.69]
[1753159384880,11.01779987,197.7,197.61,0.69]
[1753159385092,11.01779987,197.66,197.61,0.69]
[1753159385284,16.78468397,197.71,197.6,5.06072874]
[1753159385489,11.01779987,197.65,197.6,5.06072874]
[1753159385690,0.66,197.71,197.61,0.69]
[1753159385895,11.01779987,197.67,197.61,0.69]
[1753159386493,16.78468397,197.7,197.62,5.06021657]
[1753159386803,11.01779987,197.7,197.62,17.71075801]
[1753159386989,17.44468397,197.74,197.63,11.01779987]
[1753159387191,14.64318483,197.73,197.66,11.01779987]
[1753159387378,11.01779987,197.74,197.66,0.69]
[1753159387587,16.78468397,197.76,197.66,11.70779987]
[1753159387786,11.01779987,197.74,197.67,11.01779987]
[1753159388086,16.78468397,197.76,197.67,11.01779987]
[1753159388290,5.05539345,197.81,197.67,11.01779987]
[1753159388291,11.01779987,197.74,197.67,11.01779987]
[1753159388494,16.78468397,197.77,197.68,16.07648056]
[1753159388697,11.01779987,197.71,197.68,5.05868069]
[1753159388991,11.01779987,197.7,197.65,5.05944852]
[1753159389197,11.01779987,197.69,197.65,5.05944852]
[1753159389392,16.78468397,197.72,197.65,5.05944852]
[1753159389610,11.01779987,197.69,197.65,5.05944852]
[1753159390103,11.01779987,197.7,197.65,5.71944852]
[1753159390309,11.01779987,197.7,197.65,5.05944852]
[1753159391119,11.01779987,197.73,197.66,0.66]
[1753159391320,11.01779987,197.72,197.66,0.66]
[1753159391522,0.06,197.75,197.65,28.72586969]
[1753159391691,11.01779987,197.71,197.65,28.72586969]
[1753159392103,11.01779987,197.72,197.66,11.01779987]
[1753159392486,11.01779987,197.72,197.65,18.36806982]
[1753159392685,11.01779987,197.72,197.66,11.01779987]
[1753159392901,11.01779987,197.73,197.67,11.01779987]
[1753159393097,0.06,197.75,197.67,0.66]
[1753159393304,11.01779987,197.73,197.67,0.66]
[1753159393490,11.01779987,197.72,197.65,17.70806982]
[1753159393693,11.01779987,197.71,197.65,28.72586969]
[1753159393908,16.78468397,197.74,197.65,17.70806982]
[1753159394107,11.01779987,197.72,197.65,28.72586969]
[1753159394499,0.68,197.73,197.61,12.65063472]
[1753159394706,11.01779987,197.67,197.6,0.66]
[1753159394900,11.01779987,197.65,197.6,0.66]
[1753159395216,11.01779987,197.64,197.57,52.25779987]
[1753159395421,11.01779987,197.63,197.57,52.25779987]
[1753159395717,16.78468397,197.7,197.62,11.01779987]
[1753159395920,11.01779987,197.71,197.64,11.01779987]
[1753159396096,11.69779987,197.74,197.68,16.07648056]
[1753159396293,11.01779987,197.74,197.68,28.7231823]
[1753159396821,0.06,197.75,197.68,17.70538243]
[1753159396993,11.01779987,197.73,197.68,5.05868069]
[1753159397317,0.06,197.75,197.71,11.01779987]
[1753159397494,0.06,197.75,197.72,11.01779987]
[1753159397693,0.06,197.75,197.69,0.66]
[1753159397897,11.01779987,197.74,197.68,11.01779987]
[1753159398093,11.07779987,197.75,197.69,5.0584248]
[1753159398510,11.01779987,197.7,197.56,6.5042]
[1753159398817,11.01779987,197.6,197.57,5.06149719]
[1753159399024,0.68,197.6,197.56,5.09174607]
[1753159399227,11.01779987,197.58,197.56,5.09174607]
[1753159399521,0.68,197.6,197.56,0.03]
[1753159399723,11.01779987,197.57,197.56,0.03]
[1753159400092,11.69779987,197.57,197.56,0.03]
[1753159400366,33.54398103,197.57,197.56,0.03]
[1753159400623,0.68,197.57,197.56,0.03]
[1753159400834,16.75929706,197.57,197.56,0.03]
[1753159401619,33.54398103,197.57,197.56,0.03]
[1753159402513,22.52618116,197.57,197.56,0.03]
[1753159402703,27.80248384,197.57,197.56,0.03]
[1753159403400,0.68,197.6,197.56,0.03]
[1753159403595,5.5621054,197.64,197.56,0.03]
[1753159403596,11.01779987,197.57,197.56,0.03]
[1753159403926,17.46468397,197.62,197.56,0.03]
[1753159404228,11.01779987,197.58,197.56,0.03]
[1753159404905,28.48248384,197.57,197.56,0.03]
[1753159405401,32.12808521,197.57,197.56,0.03]
[1753159406326,37.1895824,197.57,197.56,0.03]
[1753159406812,48.20738227,197.57,197.56,0.03]
[1753159407009,42.78468397,197.53,197.44,5.06482982]
[1753159407215,11.01779987,197.46,197.44,5.06482982]
[1753159407412,16.78468397,197.5,197.4,5.06585612]
[1753159407612,16.78468397,197.5,197.41,0.66]
[1753159407929,11.01779987,197.48,197.41,11.67779987]
[1753159408098,11.01779987,197.49,197.43,11.01779987]
[1753159408417,11.01779987,197.49,197.44,5.06482982]
[1753159408730,12.65128622,197.61,197.45,11.67779987]
[1753159408901,0.68,197.58,197.45,0.66]
[1753159409100,11.01779987,197.5,197.45,0.66]
[1753159409301,11.01779987,197.52,197.46,0.66]
[1753159409505,11.01779987,197.52,197.46,11.67779987]
[1753159409714,11.01779987,197.5,197.44,11.01779987]
[1753159409997,11.01779987,197.48,197.43,0.66]
[1753159410211,11.01779987,197.48,197.38,58.13414021]
[1753159410414,17.46468397,197.52,197.41,11.04779987]
[1753159410606,11.01779987,197.47,197.42,0.66]
[1753159410812,11.01779987,197.46,197.42,0.66]
[1753159411010,11.01779987,197.46,197.41,0.03]
[1753159411309,11.01779987,197.46,197.42,0.66]
[1753159411711,11.01779987,197.45,197.41,0.03]
[1753159412222,16.78468397,197.51,197.42,0.66]
[1753159412528,11.01779987,197.44,197.41,0.03]
[1753159412708,11.01779987,197.43,197.41,0.03]
[1753159412913,11.01779987,197.42,197.41,0.03]
[1753159413641,16.78468397,197.44,197.41,0.03]
[1753159414004,11.01779987,197.42,197.41,0.03]
[1753159414423,26.0,197.51,197.41,0.03]
[1753159414424,16.78468397,197.47,197.41,0.03]
[1753159414622,11.01779987,197.42,197.41,0.03]
[1753159414822,16.78468397,197.47,197.41,0.03]
[1753159415013,0.68,197.48,197.41,0.03]
[1753159415014,11.01779987,197.42,197.41,0.03]
[1753159415212,11.01779987,197.43,197.41,0.03]
[1753159415418,11.01779987,197.47,197.41,11.70779987]
[1753159415628,16.78468397,197.5,197.41,11.70779987]
[1753159415836,11.01779987,197.48,197.43,5.06508635]
[1753159416432,16.78468397,197.5,197.43,5.06508635]
[1753159416605,11.01779987,197.47,197.43,5.06508635]
[1753159416810,11.01779987,197.46,197.43,5.06508635]
[1753159417421,21.84803247,197.5,197.43,5.06508635]
[1753159417626,11.01779987,197.46,197.43,5.06508635]
[1753159418007,11.01779987,197.49,197.44,0.69]
[1753159418431,11.01779987,197.52,197.46,11.01779987]
[1753159418629,11.01779987,197.54,197.48,11.01779987]
[1753159418933,11.01779987,197.56,197.5,11.01779987]
[1753159419226,16.78468397,197.59,197.49,0.69]
[1753159419438,11.01779987,197.56,197.49,11.70779987]
[1753159419630,11.01779987,197.57,197.51,11.01779987]
[1753159419808,5.06001573,197.63,197.54,5.06226587]
[1753159420009,11.01779987,197.6,197.55,0.69]
[1753159420508,0.67,197.63,197.54,5.06226587]
[1753159420821,21.84413249,197.65,197.54,5.06226587]
[1753159420822,8.37090128,197.67,197.56,11.01779987]
[1753159421020,11.01779987,197.62,197.55,0.69]
[1753159421228,17.45468397,197.66,197.56,11.01779987]
[1753159421526,11.01779987,197.61,197.55,0.69]
[1753159421712,11.01779987,197.6,197.54,16.08006574]
[1753159421913,11.01779987,197.56,197.52,5.0625339]
[1753159422115,17.45468397,197.6,197.52,5.0625339]
[1753159422527,11.01779987,197.56,197.52,5.0625339]
[1753159422924,11.01779987,197.53,197.49,0.69]
[1753159423127,11.01779987,197.52,197.47,5.06402361]
[1753159423328,0.67,197.56,197.47,5.06402361]
[1753159423629,0.67,197.55,197.47,5.06402361]
[1753159423829,21.8470752,197.54,197.47,5.06402361]
[1753159424034,11.01779987,197.51,197.46,47.04426236]
[1753159424232,11.01779987,197.51,197.46,47.73426236]
[1753159424423,16.78468397,197.53,197.46,47.73426236]
[1753159424619,42.61,197.6,197.49,11.01779987]
[1753159424825,11.01779987,197.56,197.49,11.70779987]
[1753159425011,11.01779987,197.56,197.49,0.69]
[1753159425413,11.01779987,197.56,197.46,59.70505441]
[1753159425414,11.01779987,197.52,197.46,16.08206223]
[1753159425724,16.78468397,197.59,197.49,11.01779987]
[1753159425925,11.01779987,197.55,197.5,5.75329113]
[1753159426134,11.01779987,197.53,197.49,5.06349314]
[1753159426613,11.01779987,197.52,197.49,5.06349314]
[1753159426936,11.01779987,197.52,197.48,5.0637587]
[1753159427125,11.01779987,197.52,197.48,5.7537587]
[1753159427833,31.73124101,197.58,197.48,5.7537587]
[1753159428032,11.01779987,197.53,197.49,0.69]
[1753159428216,11.01779987,197.51,197.45,5.0645733]
[1753159428422,11.01779987,197.48,197.45,5.0645733]
[1753159428823,11.01779987,197.47,197.45,5.0645733]
[1753159429014,11.01779987,197.49,197.45,5.0645733]
[1753159429621,0.67,197.49,197.41,0.03]
[1753159429933,11.01779987,197.45,197.41,5.09538339]
[1753159430144,11.01779987,197.46,197.41,5.78538339]
[1753159430372,11.01779987,197.46,197.42,0.69]
[1753159430528,11.01779987,197.47,197.43,0.69]
[1753159430717,17.45468397,197.53,197.43,0.69]
[1753159430923,11.01779987,197.47,197.43,0.69]
[1753159431345,11.01779987,197.52,197.46,11.01779987]
[1753159431522,11.01779987,197.55,197.47,0.69]
[1753159431724,11.01779987,197.52,197.47,0.69]
[1753159431942,11.01779987,197.48,197.43,5.06508635]
[1753159432149,11.01779987,197.46,197.43,5.75508635]
[1753159432518,11.01779987,197.46,197.42,0.03]
[1753159432714,11.01779987,197.45,197.42,0.03]
[1753159432946,0.67,197.49,197.42,0.03]
[1753159433143,11.01779987,197.46,197.42,0.03]
[1753159433341,11.01779987,197.43,197.42,0.03]
[1753159433642,16.78468397,197.51,197.42,0.03]
[1753159433843,11.01779987,197.44,197.42,0.03]
[1753159434141,27.80248384,197.43,197.42,0.03]
[1753159434337,28.47248384,197.43,197.42,0.03]
[1753159436043,33.53757019,197.43,197.42,0.03]
[1753159436622,16.78468397,197.44,197.42,0.03]
[1753159436927,11.01779987,197.43,197.42,0.03]
[1753159438254,33.53757019,197.43,197.42,0.03]
[1753159439355,11.01779987,197.34,197.31,0.69]
[1753159439648,11.01779987,197.32,197.25,5.06970849]
[1753159439855,11.01779987,197.29,197.24,12.40506523]
[1753159440026,11.01779987,197.27,197.2,0.69]
[1753159440228,16.78468397,197.3,197.2,11.70779987]
[1753159440522,16.78468397,197.3,197.21,11.70779987]
[1753159440733,11.01779987,197.28,197.22,11.01779987]
[1753159440936,11.01779987,197.28,197.21,0.69]
[1753159441157,11.01779987,197.28,197.22,11.01779987]
[1753159441363,8.91648113,197.37,197.18,5.07150826]
[1753159441364,5.0673501,197.35,197.27,11.01779987]
[1753159441520,16.78468397,197.36,197.29,11.01779987]
[1753159441723,11.01779987,197.3,197.24,0.69]
[1753159442025,16.78468397,197.28,197.2,5.07096633]
[1753159442366,0.67,197.32,197.23,11.01779987]
[1753159442666,0.67,197.35,197.27,11.01779987]
[1753159442949,11.01779987,197.28,197.23,6.4007]
[1753159443119,11.01779987,197.3,197.24,11.70779987]
[1753159443324,11.01779987,197.33,197.26,11.01779987]
[1753159443551,11.01779987,197.34,197.28,11.01779987]
[1753159443735,11.01779987,197.34,197.28,16.08673742]
[1753159444050,11.01779987,197.31,197.27,5.75916787]
[1753159444234,11.01779987,197.29,197.24,0.69]
[1753159444425,16.78468397,197.33,197.24,0.69]
[1753159444426,11.01779987,197.27,197.24,0.03]
[1753159445321,11.01779987,197.25,197.24,0.03]
[1753159445625,32.87219233,197.25,197.24,0.03]
[1753159445842,37.60681816,197.25,197.24,0.03]
[1753159446045,37.60681816,197.25,197.13,0.69]
[1753159446046,16.78468397,197.24,197.13,0.69]
[1753159446253,16.78468397,197.24,197.09,6.615]
[1753159446254,16.78468397,197.22,197.11,11.01779987]
[1753159446548,16.78468397,197.23,197.11,0.69]
[1753159446747,11.01779987,197.15,197.11,0.69]
[1753159446950,11.01779987,197.14,197.06,5.07459656]
[1753159447160,0.67,197.15,197.05,0.69]
[1753159447452,11.01779987,197.12,197.06,11.70779987]
[1753159447655,5.07202272,197.16,197.06,0.69]
[1753159447839,5.07202272,197.16,197.07,11.01779987]
[1753159448037,11.01779987,197.13,197.07,11.01779987]
[1753159448340,11.01779987,197.12,197.06,11.70779987]
[1753159448533,11.01779987,197.08,197.02,11.01779987]
[1753159448855,11.01779987,197.08,197.01,5.74588447]
[1753159449159,11.01779987,197.07,197.0,5.07611603]
[1753159449331,11.01779987,197.06,197.0,16.0939159]
[1753159449538,11.01779987,197.05,196.98,5.0764048]
[1753159449839,0.72,197.04,196.97,5.07691526]
[1753159450147,0.72,197.04,196.94,5.07768863]
[1753159450329,0.72,197.04,196.95,11.01779987]
[1753159450532,5.79382414,197.09,197.0,11.01779987]
[1753159450745,11.01779987,197.05,197.0,0.67]
[1753159450923,5.79382414,197.09,197.01,0.67]
[1753159451124,16.78468397,197.11,197.01,0.67]
[1753159451346,11.01779987,197.07,197.01,11.68779987]
[1753159451547,11.01779987,197.06,197.01,0.67]
[1753159451730,22.57774946,197.12,197.02,5.07562683]
[1753159451925,11.01779987,197.07,197.02,5.07562683]
[1753159452133,17.50468397,197.12,197.03,0.67]
[1753159452342,11.01779987,197.08,197.03,0.67]
[1753159452536,11.01779987,197.07,197.02,5.07562683]
[1753159452759,22.57774766,197.12,197.02,5.07562683]
[1753159452760,11.01779987,197.06,197.02,5.07562683]
[1753159453344,0.72,197.1,197.02,5.07562683]
[1753159453522,0.72,197.1,197.01,5.07588447]
[1753159453523,11.01779987,197.05,197.01,5.07588447]
[1753159453722,0.72,197.14,197.02,0.67]
[1753159453922,11.01779987,197.09,197.02,0.67]
[1753159454137,11.01779987,197.08,197.02,11.68779987]
[1753159454457,11.01779987,197.08,197.01,17.76559565]
[1753159454458,11.01779987,197.05,197.01,5.07588447]
[1753159454747,16.78468397,197.1,197.01,5.07588447]
[1753159455048,16.78468397,197.1,197.02,0.67]
[1753159455364,11.01779987,197.1,197.04,11.01779987]
[1753159455527,11.01779987,197.1,197.05,5.07485409]
[1753159455847,21.85763634,197.13,197.05,5.74485409]
[1753159456049,11.01779987,197.1,197.06,0.67]
[1753159456251,2.64653083,197.16,197.07,0.67]
[1753159456450,11.01779987,197.14,197.09,11.01779987]
[1753159456668,5.07091929,197.21,197.1,0.67]
[1753159456864,11.01779987,197.14,197.1,0.67]
[1753159457071,0.72,197.19,197.06,11.01779987]
[1753159457251,0.72,197.19,197.05,18.43198933]
[1753159457566,11.01779987,197.13,197.07,11.01779987]
[1753159457771,16.78468397,197.15,197.08,5.07408159]
[1753159457944,11.01779987,197.1,197.06,5.74440655]
[1753159458150,11.01779987,197.11,197.06,5.74440655]
[1753159458568,17.50468397,197.15,197.06,5.74440655]
[1753159458767,5.07207804,197.16,197.06,5.74440655]
[1753159458768,16.78468397,197.16,197.06,16.76220642]
[1753159458948,11.01779987,197.13,197.07,11.01779987]